[Event "*** Titled Tuesday Blitz"]
[Site "Chess.com"]
[Date "2020.04.07"]
[Round "5"]
[White "Chessdemon2019"]
[Black "IMDT02"]
[Result "0-1"]
[WhiteElo "2259"]
[BlackElo "2462"]
[TimeControl "180+1"]
[EndTime "13:56:29 PDT"]
[Termination "IMDT02 won on time"]

1. e4 {[%clk 0:03:00.9]} 1... c5 {[%clk 0:02:59.9]} 2. Nf3 {[%clk 0:03:00.3]}
2... Nc6 {[%clk 0:02:53.3]} 3. Bb5 {[%clk 0:02:58.4]} 3... Nf6 {[%clk
0:02:53.1]} 4. Bxc6 {[%clk 0:02:54.9]} 4... dxc6 {[%clk 0:02:54]} 5. d3 {[%clk
0:02:54.5]} 5... Bg4 {[%clk 0:02:53.7]} 6. h3 {[%clk 0:02:52.4]} 6... Bh5 {[%clk
0:02:53.5]} 7. O-O {[%clk 0:02:51.4]} 7... Nd7 {[%clk 0:02:50.5]} 8. Nc3 {[%clk
0:02:48.4]} 8... e5 {[%clk 0:02:43.7]} 9. Be3 {[%clk 0:02:37.2]} 9... f6 {[%clk
0:02:43.4]} 10. a4 {[%clk 0:02:34.6]} 10... a5 {[%clk 0:02:42.2]} 11. Qe2 {[%clk
0:02:24.3]} 11... Bd6 {[%clk 0:02:42.1]} 12. Rfe1 {[%clk 0:02:12.2]} 12... Qc7
{[%clk 0:02:42.2]} 13. Bd2 {[%clk 0:02:09.1]} 13... O-O {[%clk 0:02:41.8]} 14.
Qe3 {[%clk 0:02:08.6]} 14... Rfe8 {[%clk 0:02:32.8]} 15. Nh2 {[%clk 0:02:03.5]}
15... Nf8 {[%clk 0:02:31.6]} 16. Nf1 {[%clk 0:02:03.2]} 16... Ne6 {[%clk
0:02:30.6]} 17. Ng3 {[%clk 0:02:03.4]} 17... Bg6 {[%clk 0:02:29.4]} 18. Nce2
{[%clk 0:01:54.4]} 18... Nd4 {[%clk 0:02:27.1]} 19. Nxd4 {[%clk 0:01:52.9]}
19... cxd4 {[%clk 0:02:28]} 20. Qe2 {[%clk 0:01:50.3]} 20... b5 {[%clk
0:02:28.2]} 21. Ra2 {[%clk 0:01:40.6]} 21... Bb4 {[%clk 0:02:18.8]} 22. Rea1
{[%clk 0:01:28.6]} 22... Bxd2 {[%clk 0:02:15.5]} 23. Qxd2 {[%clk 0:01:28.1]}
23... b4 {[%clk 0:02:15]} 24. b3 {[%clk 0:01:28]} 24... Rf8 {[%clk 0:02:07.5]}
25. Rf1 {[%clk 0:01:26]} 25... Bf7 {[%clk 0:02:01.4]} 26. Raa1 {[%clk
0:01:24.7]} 26... g6 {[%clk 0:02:01.6]} 27. f4 {[%clk 0:01:22.1]} 27... Rae8
{[%clk 0:02:02.1]} 28. fxe5 {[%clk 0:01:18.7]} 28... Qxe5 {[%clk 0:01:57.8]} 29.
Ne2 {[%clk 0:01:17.1]} 29... g5 {[%clk 0:01:54.7]} 30. Rf5 {[%clk 0:01:11]}
30... Qd6 {[%clk 0:01:53]} 31. Raf1 {[%clk 0:01:05.5]} 31... Bg6 {[%clk
0:01:50.6]} 32. Rxa5 {[%clk 0:01:03.7]} 32... c5 {[%clk 0:01:50.8]} 33. Ra7
{[%clk 0:00:50.9]} 33... Qb6 {[%clk 0:01:47.6]} 34. Rd7 {[%clk 0:00:50.5]} 34...
Re6 {[%clk 0:01:43.1]} 35. Ng3 {[%clk 0:00:46.5]} 35... Qc6 {[%clk 0:01:39.6]}
36. Rd5 {[%clk 0:00:45.5]} 36... Rfe8 {[%clk 0:01:37.2]} 37. Nf5 {[%clk
0:00:40.5]} 37... Kf8 {[%clk 0:01:30.3]} 38. Qc1 {[%clk 0:00:31.3]} 38... Re5
{[%clk 0:01:25.4]} 39. Rxe5 {[%clk 0:00:28.5]} 39... Rxe5 {[%clk 0:01:26.3]} 40.
Nh6 {[%clk 0:00:22.5]} 40... Kg7 {[%clk 0:01:18.3]} 41. Ng4 {[%clk 0:00:22.4]}
41... Re6 {[%clk 0:01:15.9]} 42. Kh1 {[%clk 0:00:17.6]} 42... h5 {[%clk
0:01:16]} 43. Nh2 {[%clk 0:00:16.8]} 43... Qd6 {[%clk 0:01:12.5]} 44. Nf3 {[%clk
0:00:16.6]} 44... g4 {[%clk 0:01:10.3]} 45. hxg4 {[%clk 0:00:16.3]} 45... hxg4
{[%clk 0:01:11.2]} 46. Nh4 {[%clk 0:00:16.5]} 46... Qg3 {[%clk 0:01:05.3]} 47.
Nf5+ {[%clk 0:00:14.6]} 47... Bxf5 {[%clk 0:01:03.3]} 48. Rxf5 {[%clk
0:00:15.5]} 48... Qh4+ {[%clk 0:01:01.5]} 49. Kg1 {[%clk 0:00:15.4]} 49... g3
{[%clk 0:01:01.1]} 50. Qf4 {[%clk 0:00:09.2]} 50... Qh2+ {[%clk 0:00:59.8]} 51.
Kf1 {[%clk 0:00:09.8]} 51... Qh1+ {[%clk 0:01:00.1]} 52. Ke2 {[%clk 0:00:10.4]}
52... Qxg2+ {[%clk 0:01:00.6]} 53. Kd1 {[%clk 0:00:11]} 53... Qh1+ {[%clk
0:00:56.7]} 54. Kd2 {[%clk 0:00:10.8]} 54... g2 {[%clk 0:00:56.2]} 55. Qg4+
{[%clk 0:00:10.9]} 55... Kf7 {[%clk 0:00:56.7]} 56. e5 {[%clk 0:00:03.8]} 56...
g1=Q {[%clk 0:00:55.7]} 57. Rxf6+ {[%clk 0:00:03.9]} 57... Rxf6 {[%clk
0:00:55.7]} 58. Qd7+ {[%clk 0:00:04.2]} 58... Kg6 {[%clk 0:00:55.9]} 59. Qe8+
{[%clk 0:00:04.5]} 59... Rf7 {[%clk 0:00:55.5]} 60. Qe6+ {[%clk 0:00:04.4]}
60... Kg7 {[%clk 0:00:55.4]} 0-1

[Event "*** Titled Tuesday Blitz"]
[Site "Chess.com"]
[Date "2020.04.07"]
[Round "5"]
[White "vaps"]
[Black "indfraeng"]
[Result "0-1"]
[WhiteElo "1976"]
[BlackElo "2237"]
[TimeControl "180+1"]
[EndTime "13:56:29 PDT"]
[Termination "indfraeng won on time"]

1. Nf3 {[%clk 0:03:00.9]} 1... Nf6 {[%clk 0:02:54.1]} 2. c4 {[%clk 0:03:00.3]}
2... c5 {[%clk 0:02:52.4]} 3. Nc3 {[%clk 0:02:59.1]} 3... g6 {[%clk 0:02:50]} 4.
g3 {[%clk 0:02:59.3]} 4... Bg7 {[%clk 0:02:46.4]} 5. Bg2 {[%clk 0:02:59.3]} 5...
Nc6 {[%clk 0:02:46.6]} 6. d4 {[%clk 0:02:58.6]} 6... cxd4 {[%clk 0:02:46]} 7.
Nxd4 {[%clk 0:02:59.5]} 7... O-O {[%clk 0:02:46.5]} 8. O-O {[%clk 0:02:59.2]}
8... Nxd4 {[%clk 0:02:30.2]} 9. Qxd4 {[%clk 0:03:00.1]} 9... d6 {[%clk
0:02:30.7]} 10. Qd3 {[%clk 0:02:57.9]} 10... Nd7 {[%clk 0:02:26.8]} 11. b3
{[%clk 0:02:49.2]} 11... Nc5 {[%clk 0:02:23.3]} 12. Qd2 {[%clk 0:02:39.8]} 12...
Rb8 {[%clk 0:02:15.3]} 13. Bb2 {[%clk 0:02:38.6]} 13... b6 {[%clk 0:02:14.4]}
14. Rac1 {[%clk 0:02:25.8]} 14... Bb7 {[%clk 0:02:11.6]} 15. Nd5 {[%clk
0:02:07.2]} 15... Nd7 {[%clk 0:01:49.9]} 16. Bxg7 {[%clk 0:02:01.1]} 16... Kxg7
{[%clk 0:01:50.8]} 17. Qd4+ {[%clk 0:01:57.7]} 17... e5 {[%clk 0:01:48.4]} 18.
Qd2 {[%clk 0:01:50.3]} 18... Nf6 {[%clk 0:01:46.3]} 19. Nc3 {[%clk 0:01:44.2]}
19... Bxg2 {[%clk 0:01:43]} 20. Kxg2 {[%clk 0:01:45.1]} 20... Qd7 {[%clk
0:01:42]} 21. Rfd1 {[%clk 0:01:43.9]} 21... Rfd8 {[%clk 0:01:42]} 22. Nd5 {[%clk
0:01:40.6]} 22... Qb7 {[%clk 0:01:40.5]} 23. Kg1 {[%clk 0:01:37.2]} 23... Nxd5
{[%clk 0:01:35.6]} 24. Qxd5 {[%clk 0:01:36.4]} 24... Qa6 {[%clk 0:01:31.5]} 25.
a4 {[%clk 0:01:26.2]} 25... Rbc8 {[%clk 0:01:30.2]} 26. Rd3 {[%clk 0:01:14.2]}
26... Rc5 {[%clk 0:01:28.7]} 27. Qf3 {[%clk 0:00:56.6]} 27... d5 {[%clk
0:01:20.6]} 28. e4 {[%clk 0:00:34.6]} 28... d4 {[%clk 0:01:17.3]} 29. Qe2 {[%clk
0:00:32.1]} 29... Rdc8 {[%clk 0:01:14.1]} 30. f4 {[%clk 0:00:28.1]} 30... f6
{[%clk 0:01:11]} 31. fxe5 {[%clk 0:00:24.4]} 31... fxe5 {[%clk 0:01:11.9]} 32.
Rf1 {[%clk 0:00:23.6]} 32... Qb7 {[%clk 0:01:10.5]} 33. Rdf3 {[%clk 0:00:20.4]}
33... Qe7 {[%clk 0:01:07.8]} 34. Qf2 {[%clk 0:00:19.4]} 34... R5c7 {[%clk
0:01:06.1]} 35. Rf6 {[%clk 0:00:17.9]} 35... Rd7 {[%clk 0:01:01]} 36. g4 {[%clk
0:00:16.5]} 36... Rcd8 {[%clk 0:01:00.3]} 37. h4 {[%clk 0:00:15]} 37... d3
{[%clk 0:00:59.7]} 38. Rf3 {[%clk 0:00:12.5]} 38... d2 {[%clk 0:00:58]} 39. Rd1
{[%clk 0:00:11.7]} 39... Qc5 {[%clk 0:00:56.8]} 40. Qxc5 {[%clk 0:00:10.8]}
40... bxc5 {[%clk 0:00:57.7]} 41. Kf2 {[%clk 0:00:10.2]} 41... Rd4 {[%clk
0:00:54.7]} 42. Re3 {[%clk 0:00:09.8]} 42... Rd3 {[%clk 0:00:54.1]} 43. Ke2
{[%clk 0:00:08.4]} 43... Rxe3+ {[%clk 0:00:52]} 44. Kxe3 {[%clk 0:00:09.3]}
44... Rb8 {[%clk 0:00:52.2]} 45. Rxd2 {[%clk 0:00:08.8]} 45... Rxb3+ {[%clk
0:00:52.4]} 46. Rd3 {[%clk 0:00:08]} 46... Rb4 {[%clk 0:00:50]} 47. Rd7+ {[%clk
0:00:07.3]} 47... Kg8 {[%clk 0:00:46.5]} 48. Rxa7 {[%clk 0:00:06.8]} 48... Rxc4
{[%clk 0:00:46.9]} 49. Kd3 {[%clk 0:00:05]} 49... Rd4+ {[%clk 0:00:46.4]} 50.
Ke3 {[%clk 0:00:03.9]} 50... c4 {[%clk 0:00:46.2]} 51. Rc7 {[%clk 0:00:02.9]}
51... Rd3+ {[%clk 0:00:45.9]} 52. Ke2 {[%clk 0:00:02]} 52... Rg3 {[%clk
0:00:45.2]} 0-1

[Event "*** Titled Tuesday Blitz"]
[Site "Chess.com"]
[Date "2020.04.07"]
[Round "5"]
[White "1f3_2g41-0"]
[Black "djano"]
[Result "0-1"]
[WhiteElo "2159"]
[BlackElo "2486"]
[TimeControl "180+1"]
[EndTime "13:56:30 PDT"]
[Termination "djano won by resignation"]

1. e4 {[%clk 0:03:00.9]} 1... e5 {[%clk 0:02:58]} 2. Nf3 {[%clk 0:03:00.7]} 2...
Nc6 {[%clk 0:02:58.1]} 3. Bb5 {[%clk 0:03:00.7]} 3... a6 {[%clk 0:02:56]} 4. Ba4
{[%clk 0:03:00.8]} 4... g6 {[%clk 0:02:56.2]} 5. O-O {[%clk 0:03:00.5]} 5... Bg7
{[%clk 0:02:54.7]} 6. c3 {[%clk 0:02:59.5]} 6... b5 {[%clk 0:02:48.1]} 7. Bb3
{[%clk 0:02:56.2]} 7... Nf6 {[%clk 0:02:43.2]} 8. d4 {[%clk 0:02:52.6]} 8...
exd4 {[%clk 0:02:39.4]} 9. e5 {[%clk 0:02:51.4]} 9... Ne4 {[%clk 0:02:09.5]} 10.
Re1 {[%clk 0:02:43.9]} 10... Nc5 {[%clk 0:02:07.7]} 11. cxd4 {[%clk 0:02:40.5]}
11... Nxb3 {[%clk 0:02:07.3]} 12. Qxb3 {[%clk 0:02:40.8]} 12... O-O {[%clk
0:02:01.8]} 13. Bg5 {[%clk 0:02:40.2]} 13... Qe8 {[%clk 0:02:02]} 14. Nc3 {[%clk
0:02:40.2]} 14... Bb7 {[%clk 0:01:55.6]} 15. a4 {[%clk 0:02:33.4]} 15... Na5
{[%clk 0:01:48]} 16. Qb4 {[%clk 0:02:32.8]} 16... Nc6 {[%clk 0:01:45.9]} 17. Qb3
{[%clk 0:02:31.8]} 17... h6 {[%clk 0:01:39]} 18. Bf6 {[%clk 0:02:26]} 18... Na5
{[%clk 0:01:34]} 19. Qb4 {[%clk 0:02:25.6]} 19... Nc6 {[%clk 0:01:25.2]} 20. Qb3
{[%clk 0:02:23.7]} 20... Na5 {[%clk 0:01:18.5]} 21. Qd1 {[%clk 0:02:18.5]} 21...
b4 {[%clk 0:01:10]} 22. Ne4 {[%clk 0:02:17.4]} 22... Bxe4 {[%clk 0:01:05.5]} 23.
Rxe4 {[%clk 0:01:30.3]} 23... Bxf6 {[%clk 0:01:05.4]} 24. Qc1 {[%clk 0:01:28.1]}
24... Bg7 {[%clk 0:01:02.8]} 25. Qxc7 {[%clk 0:01:27.4]} 25... Nc6 {[%clk
0:00:49.8]} 26. d5 {[%clk 0:01:23.4]} 26... Ne7 {[%clk 0:00:49.9]} 27. Rd1
{[%clk 0:01:19.9]} 27... Rc8 {[%clk 0:00:49]} 28. Qb6 {[%clk 0:01:19.8]} 28...
Rc2 {[%clk 0:00:42.1]} 29. Qxb4 {[%clk 0:01:16.5]} 29... h5 {[%clk 0:00:34.4]}
30. Nd4 {[%clk 0:01:15.7]} 30... Rc8 {[%clk 0:00:28.5]} 31. Nb3 {[%clk
0:01:11.9]} 31... Rb8 {[%clk 0:00:27.7]} 32. Qc4 {[%clk 0:01:11.4]} 32... Qc8
{[%clk 0:00:26.8]} 33. Qd3 {[%clk 0:01:02.4]} 33... Qb7 {[%clk 0:00:24.6]} 34.
Nc5 {[%clk 0:01:01.9]} 34... Qa7 {[%clk 0:00:23.1]} 35. b4 {[%clk 0:00:59.9]}
35... a5 {[%clk 0:00:23.5]} 36. Qh3 {[%clk 0:00:53]} 36... Nf5 {[%clk
0:00:19.7]} 37. Qc3 {[%clk 0:00:45]} 37... axb4 {[%clk 0:00:19.5]} 38. Rxb4
{[%clk 0:00:45]} 38... Rbc8 {[%clk 0:00:18.7]} 39. Rc4 {[%clk 0:00:42.9]} 39...
d6 {[%clk 0:00:19.1]} 40. Nd3 {[%clk 0:00:37.1]} 40... Rxc4 {[%clk 0:00:19]} 41.
Qxc4 {[%clk 0:00:38]} 41... dxe5 {[%clk 0:00:19]} 42. d6 {[%clk 0:00:37.5]}
42... Nxd6 {[%clk 0:00:18.8]} 43. Qd5 {[%clk 0:00:36.8]} 43... Nf5 {[%clk
0:00:18.7]} 44. Nxe5 {[%clk 0:00:36.7]} 44... Qxa4 {[%clk 0:00:17.2]} 45. h3
{[%clk 0:00:31.8]} 45... Bxe5 {[%clk 0:00:17.1]} 46. Qxe5 {[%clk 0:00:31.9]}
46... Qxd1+ {[%clk 0:00:17]} 47. Kh2 {[%clk 0:00:31.9]} 47... Qd6 {[%clk
0:00:17.9]} 48. Qxd6 {[%clk 0:00:31.9]} 48... Nxd6 {[%clk 0:00:18.8]} 49. Kg3
{[%clk 0:00:32.1]} 49... g5 {[%clk 0:00:19]} 0-1

[Event "*** Titled Tuesday Blitz"]
[Site "Chess.com"]
[Date "2020.04.07"]
[Round "5"]
[White "Rogue_King"]
[Black "kinga2008"]
[Result "1-0"]
[WhiteElo "2228"]
[BlackElo "1906"]
[TimeControl "180+1"]
[EndTime "13:56:32 PDT"]
[Termination "Rogue_King won on time"]

1. d4 {[%clk 0:03:00.9]} 1... Nf6 {[%clk 0:02:47.6]} 2. c4 {[%clk 0:02:59.2]}
2... g6 {[%clk 0:02:45.9]} 3. Nc3 {[%clk 0:02:59.3]} 3... Bg7 {[%clk 0:02:41.9]}
4. e4 {[%clk 0:02:59.2]} 4... d6 {[%clk 0:02:39.8]} 5. Be2 {[%clk 0:02:59.5]}
5... O-O {[%clk 0:02:38.8]} 6. Nf3 {[%clk 0:03:00]} 6... e5 {[%clk 0:02:38]} 7.
O-O {[%clk 0:03:00.9]} 7... exd4 {[%clk 0:02:37.8]} 8. Nxd4 {[%clk 0:03:01.3]}
8... Nc6 {[%clk 0:02:37.5]} 9. Be3 {[%clk 0:02:58.5]} 9... Nxd4 {[%clk
0:02:36.9]} 10. Bxd4 {[%clk 0:02:57.4]} 10... Re8 {[%clk 0:02:37.8]} 11. f3
{[%clk 0:02:56.5]} 11... Bd7 {[%clk 0:02:34.9]} 12. Qd2 {[%clk 0:02:54.7]} 12...
a6 {[%clk 0:02:34.9]} 13. Rfd1 {[%clk 0:02:44.5]} 13... Rb8 {[%clk 0:02:34.6]}
14. Rac1 {[%clk 0:02:28.3]} 14... Nh5 {[%clk 0:02:29.9]} 15. Be3 {[%clk
0:02:19]} 15... f5 {[%clk 0:02:15.6]} 16. exf5 {[%clk 0:02:12.5]} 16... gxf5
{[%clk 0:02:05.3]} 17. Bd3 {[%clk 0:01:52.5]} 17... c6 {[%clk 0:01:57.7]} 18.
Bf2 {[%clk 0:01:49.6]} 18... Qf6 {[%clk 0:01:40.7]} 19. Bb1 {[%clk 0:01:42.8]}
19... Bh6 {[%clk 0:01:35.9]} 20. Qxd6 {[%clk 0:01:37.5]} 20... Qxd6 {[%clk
0:01:22.6]} 21. Rxd6 {[%clk 0:01:38.4]} 21... Bxc1 {[%clk 0:01:22.3]} 22. Rxd7
{[%clk 0:01:37.6]} 22... Bxb2 {[%clk 0:01:21.5]} 23. Na4 {[%clk 0:01:35.8]}
23... Ba3 {[%clk 0:01:17.2]} 24. Bxf5 {[%clk 0:01:33.4]} 24... Nf4 {[%clk
0:01:15.8]} 25. Bxh7+ {[%clk 0:01:22.4]} 25... Kf8 {[%clk 0:01:12.9]} 26. Bh4
{[%clk 0:00:19.6]} 26... Be7 {[%clk 0:01:04.9]} 27. Bg3 {[%clk 0:00:16]} 27...
Ne2+ {[%clk 0:01:03.9]} 28. Kf2 {[%clk 0:00:16.4]} 28... Nxg3 {[%clk 0:01:04]}
29. Kxg3 {[%clk 0:00:16.7]} 29... b5 {[%clk 0:01:01]} 30. cxb5 {[%clk
0:00:14.4]} 30... cxb5 {[%clk 0:00:59.7]} 31. Nc3 {[%clk 0:00:14.3]} 31... Red8
{[%clk 0:01:00.2]} 32. Ra7 {[%clk 0:00:13.2]} 32... Rb6 {[%clk 0:00:54.2]} 33.
Ne4 {[%clk 0:00:11.9]} 33... Rdb8 {[%clk 0:00:42.7]} 34. Bf5 {[%clk 0:00:11.6]}
34... Kf7 {[%clk 0:00:31.4]} 35. h4 {[%clk 0:00:11]} 35... R8b7 {[%clk
0:00:29.4]} 36. Ra8 {[%clk 0:00:10.3]} 36... Rb8 {[%clk 0:00:27.1]} 37. Ra7
{[%clk 0:00:10.4]} 37... R8b7 {[%clk 0:00:15.9]} 38. Ra8 {[%clk 0:00:10.3]}
38... Kg7 {[%clk 0:00:12.5]} 39. h5 {[%clk 0:00:09.6]} 39... Bd6+ {[%clk
0:00:09.9]} 40. Kh4 {[%clk 0:00:08.9]} 40... Be7+ {[%clk 0:00:09.6]} 41. Kg3
{[%clk 0:00:08.9]} 41... Rh6 {[%clk 0:00:07.4]} 42. Bg6 {[%clk 0:00:07.7]} 42...
Rb6 {[%clk 0:00:02.3]} 43. Ra7 {[%clk 0:00:07.5]} 1-0

[Event "*** Titled Tuesday Blitz"]
[Site "Chess.com"]
[Date "2020.04.07"]
[Round "5"]
[White "AlanZhang"]
[Black "semchik73"]
[Result "1-0"]
[WhiteElo "2154"]
[BlackElo "2313"]
[TimeControl "180+1"]
[EndTime "13:56:33 PDT"]
[Termination "AlanZhang won by resignation"]

1. e4 {[%clk 0:03:00.9]} 1... Nf6 {[%clk 0:02:59]} 2. e5 {[%clk 0:03:00.5]} 2...
Nd5 {[%clk 0:02:59]} 3. d4 {[%clk 0:03:01.1]} 3... d6 {[%clk 0:02:59]} 4. Nf3
{[%clk 0:02:58.1]} 4... Bg4 {[%clk 0:02:58.8]} 5. Be2 {[%clk 0:02:56.1]} 5... c6
{[%clk 0:02:58.5]} 6. O-O {[%clk 0:02:49.1]} 6... Bxf3 {[%clk 0:02:58.4]} 7.
Bxf3 {[%clk 0:02:48]} 7... dxe5 {[%clk 0:02:58.9]} 8. dxe5 {[%clk 0:02:48.9]}
8... e6 {[%clk 0:02:59]} 9. c4 {[%clk 0:02:46.5]} 9... Ne7 {[%clk 0:02:58.7]}
10. b3 {[%clk 0:02:45.4]} 10... Ng6 {[%clk 0:02:57.5]} 11. Bb2 {[%clk
0:02:44.8]} 11... Nd7 {[%clk 0:02:56.5]} 12. Re1 {[%clk 0:02:39.2]} 12... Qc7
{[%clk 0:02:56.4]} 13. Qe2 {[%clk 0:02:35.7]} 13... O-O-O {[%clk 0:02:55.1]} 14.
g3 {[%clk 0:02:34.4]} 14... Nc5 {[%clk 0:02:54.2]} 15. Nd2 {[%clk 0:01:45.5]}
15... Nd3 {[%clk 0:02:53]} 16. Reb1 {[%clk 0:01:00.6]} 16... Nxb2 {[%clk
0:02:52.7]} 17. Rxb2 {[%clk 0:01:01]} 17... Qxe5 {[%clk 0:02:52.3]} 18. Qxe5
{[%clk 0:00:59.1]} 18... Nxe5 {[%clk 0:02:51.9]} 19. Bg2 {[%clk 0:00:59.4]}
19... Bb4 {[%clk 0:02:48.4]} 20. Rd1 {[%clk 0:00:58.6]} 20... Nd3 {[%clk
0:02:45.5]} 21. Rc2 {[%clk 0:00:57.1]} 21... Ne5 {[%clk 0:02:44.7]} 22. Kf1
{[%clk 0:00:42]} 22... Rd7 {[%clk 0:02:43.6]} 23. f4 {[%clk 0:00:37.8]} 23...
Ng4 {[%clk 0:02:41.9]} 24. Ke2 {[%clk 0:00:38]} 24... Rhd8 {[%clk 0:02:40.6]}
25. h3 {[%clk 0:00:36.4]} 25... Nf6 {[%clk 0:02:35]} 26. Bf3 {[%clk 0:00:21.7]}
26... Rd3 {[%clk 0:02:25.9]} 27. g4 {[%clk 0:00:17.6]} 27... Bc5 {[%clk
0:02:25.7]} 28. g5 {[%clk 0:00:17.3]} 28... Re3+ {[%clk 0:02:25.2]} 29. Kf1
{[%clk 0:00:13.2]} 29... Rxd2 {[%clk 0:02:22.9]} 30. Rcxd2 {[%clk 0:00:11.7]}
30... Rxf3+ {[%clk 0:02:22.8]} 31. Kg2 {[%clk 0:00:12]} 31... Rxf4 {[%clk
0:02:19.1]} 32. gxf6 {[%clk 0:00:11.5]} 32... Rxf6 {[%clk 0:02:17.6]} 33. Rd8+
{[%clk 0:00:12]} 33... Kc7 {[%clk 0:02:17.1]} 34. R1d7+ {[%clk 0:00:12.6]} 34...
Kb6 {[%clk 0:02:17.3]} 35. Rb8 {[%clk 0:00:12.7]} 35... Rf2+ {[%clk 0:02:15.1]}
36. Kg3 {[%clk 0:00:12.2]} 36... Rxa2 {[%clk 0:02:11]} 37. Rbxb7+ {[%clk
0:00:11.2]} 37... Ka6 {[%clk 0:02:11.1]} 38. b4 {[%clk 0:00:11.1]} 38... Bb6
{[%clk 0:02:09.8]} 39. c5 {[%clk 0:00:10.5]} 39... Ra3+ {[%clk 0:02:08.7]} 40.
Kf4 {[%clk 0:00:09.3]} 40... Ra4 {[%clk 0:02:07]} 41. cxb6 {[%clk 0:00:08.8]}
41... Rxb4+ {[%clk 0:02:07.5]} 42. Ke3 {[%clk 0:00:08.3]} 42... axb6 {[%clk
0:02:07.9]} 43. Ra7+ {[%clk 0:00:07.9]} 43... Kb5 {[%clk 0:02:08.3]} 44. Rxf7
{[%clk 0:00:08]} 44... c5 {[%clk 0:02:05.9]} 45. Rxg7 {[%clk 0:00:08]} 45... Rh4
{[%clk 0:02:06.4]} 46. Rxh7 {[%clk 0:00:07.4]} 46... Rb4 {[%clk 0:02:06.6]} 47.
Rh6 {[%clk 0:00:06.4]} 47... Rb3+ {[%clk 0:02:06.7]} 48. Kd2 {[%clk 0:00:05.8]}
48... c4 {[%clk 0:02:06.7]} 49. Rxe6 {[%clk 0:00:04.7]} 49... Rxh3 {[%clk
0:02:06.5]} 50. Rb7 {[%clk 0:00:05]} 50... Rh2+ {[%clk 0:02:06]} 51. Kc3 {[%clk
0:00:04.6]} 51... Rh3+ {[%clk 0:02:06.2]} 52. Kd4 {[%clk 0:00:03.2]} 52... Rd3+
{[%clk 0:02:05.6]} 53. Ke4 {[%clk 0:00:03.2]} 53... Rd1 {[%clk 0:02:02.4]} 54.
Rexb6+ {[%clk 0:00:04.1]} 54... Kc5 {[%clk 0:02:02.2]} 55. Rb5+ {[%clk
0:00:03.9]} 55... Kc6 {[%clk 0:02:02.6]} 56. R7b6+ {[%clk 0:00:03.9]} 56... Kc7
{[%clk 0:02:02.8]} 57. Rh6 {[%clk 0:00:03.8]} 57... Re1+ {[%clk 0:02:02.2]} 58.
Kd4 {[%clk 0:00:03.6]} 58... Rc1 {[%clk 0:02:02.6]} 59. Rc5+ {[%clk 0:00:02.7]}
59... Kd7 {[%clk 0:02:03.2]} 60. Rxc4 {[%clk 0:00:03.6]} 60... Rd1+ {[%clk
0:02:03.5]} 61. Kc3 {[%clk 0:00:03.8]} 61... Rc1+ {[%clk 0:02:03.4]} 62. Kb3
{[%clk 0:00:04.4]} 62... Rb1+ {[%clk 0:02:03.5]} 63. Kc2 {[%clk 0:00:05]} 63...
Rb5 {[%clk 0:02:02.9]} 64. Rg4 {[%clk 0:00:05.2]} 64... Ke7 {[%clk 0:02:02.9]}
65. Rg7+ {[%clk 0:00:05.3]} 65... Kf8 {[%clk 0:02:03.3]} 66. Ra7 {[%clk
0:00:05.8]} 66... Rc5+ {[%clk 0:02:03.4]} 67. Kb3 {[%clk 0:00:04.8]} 67... Kg8
{[%clk 0:02:03.4]} 68. Rb6 {[%clk 0:00:04]} 68... Rc8 {[%clk 0:02:03.5]} 69. Kb4
{[%clk 0:00:04.1]} 69... Rf8 {[%clk 0:02:03.9]} 70. Kb5 {[%clk 0:00:03.7]} 70...
Rd8 {[%clk 0:02:04.3]} 71. Kc6 {[%clk 0:00:03.2]} 71... Rf8 {[%clk 0:02:04.7]}
72. Kd5 {[%clk 0:00:03]} 72... Rf5+ {[%clk 0:02:04.4]} 73. Ke4 {[%clk
0:00:02.9]} 73... Rf8 {[%clk 0:02:04.6]} 74. Ke5 {[%clk 0:00:02.6]} 74... Re8+
{[%clk 0:02:04.2]} 75. Kf6 {[%clk 0:00:01.4]} 75... Rc8 {[%clk 0:02:04.1]} 76.
Kg6 {[%clk 0:00:01.5]} 76... Kh8 {[%clk 0:02:03.9]} 77. Rbb7 {[%clk 0:00:02]}
77... Rc6+ {[%clk 0:02:03.2]} 78. Kf7 {[%clk 0:00:02.1]} 78... Rc8 {[%clk
0:02:02.7]} 79. Kf6 {[%clk 0:00:02]} 79... Rc6+ {[%clk 0:02:02.7]} 80. Kg5
{[%clk 0:00:02.9]} 80... Rc5+ {[%clk 0:02:02.8]} 81. Kg6 {[%clk 0:00:02.7]}
81... Rc6+ {[%clk 0:02:02.8]} 82. Kf5 {[%clk 0:00:03]} 82... Rc5+ {[%clk
0:02:02.1]} 83. Ke6 {[%clk 0:00:03]} 83... Rc6+ {[%clk 0:02:02.4]} 84. Kd5
{[%clk 0:00:03.9]} 84... Rc8 {[%clk 0:02:02.2]} 85. Rh7+ {[%clk 0:00:04.4]}
85... Kg8 {[%clk 0:02:01.9]} 86. Rag7+ {[%clk 0:00:05.3]} 86... Kf8 {[%clk
0:02:02.1]} 87. Rh8+ {[%clk 0:00:06.2]} 87... Kxg7 {[%clk 0:02:02.1]} 88. Rxc8
{[%clk 0:00:07.1]} 88... Kf7 {[%clk 0:02:02.6]} 89. Rc7+ {[%clk 0:00:07.1]}
89... Kf6 {[%clk 0:02:03]} 90. Rb7 {[%clk 0:00:07.4]} 90... Kf5 {[%clk
0:02:03.2]} 91. Rf7+ {[%clk 0:00:07.5]} 91... Kg6 {[%clk 0:02:03.6]} 92. Ke6
{[%clk 0:00:07.8]} 92... Kg5 {[%clk 0:02:03.1]} 93. Ke5 {[%clk 0:00:08]} 93...
Kg4 {[%clk 0:02:03.5]} 94. Ke4 {[%clk 0:00:07.8]} 94... Kg3 {[%clk 0:02:04.4]}
95. Ke3 {[%clk 0:00:08.1]} 1-0